fUSD/lending_fUSD_20240107
["ID","MTS","AMOUNT","RATE_DAILY","PERIOD"]
[310629780,1704593449190,-500.0,0.00022793,2]
[310629781,1704593449200,-519.84,0.00022793,2]
[310629782,1704593449209,-519.84,0.00022793,2]
[310629783,1704593449218,-519.84,0.00022793,2]
[310629784,1704593449228,-519.84,0.00022793,2]
[310629785,1704593449238,-500.0,0.00022793,2]
[310629786,1704593449248,-500.0,0.00022793,2]
[310629787,1704593449257,-500.0,0.00022793,2]
[310629788,1704593449267,-500.0,0.00022793,2]
[310629789,1704593449276,-540.89,0.00022793,2]
[310629790,1704593449286,-500.0,0.00022793,2]
[310629791,1704593449295,-2208.02,0.00022793,2]
[310629792,1704593449305,-407.5440408,0.00022793,2]
[310629793,1704593449315,-500.0,0.00022793,2]
[310629794,1704593449324,-619.02702905,0.00022793,2]
[310629795,1704593449334,-1566.01,0.00022793,2]
[310629796,1704593449343,-528.422175,0.00022793,2]
[310629797,1704593449353,-500.0,0.00022793,2]
[310629798,1704593449363,-745.33,0.00022793,2]
[310629799,1704593449372,-500.0,0.00022793,2]
[310629800,1704593449382,-500.0,0.00022793,2]
[310629801,1704593449391,-500.0,0.00022793,2]
[310629802,1704593449401,-500.0,0.00022793,2]
[310629803,1704593449411,-500.0,0.00022793,2]
[310629804,1704593449421,-500.0,0.00022793,2]
[310629805,1704593449430,-500.0,0.00022793,2]
[310629806,1704593449440,-500.0,0.00022793,2]
[310629807,1704593449450,-500.0,0.00022793,2]
[310629808,1704593449459,-436.90724667,0.00022793,2]
[310629809,1704593449469,-884.62,0.00022793,2]
[310629810,1704593449479,-468.74,0.00022793,2]
[310629811,1704593449488,-500.0,0.00022793,2]
[310629812,1704593449498,-500.0,0.00022793,2]
[310629813,1704593449508,-500.0,0.00022793,2]
[310629814,1704593449518,-500.0,0.00022793,2]
[310629815,1704593449527,-500.0,0.00022793,2]
[310629816,1704593449538,-166.6084906,0.00022793,2]
[310629817,1704593449547,-500.0,0.00022793,2]
[310629818,1704593449557,-544.85,0.00022793,2]
[310629819,1704593449567,-544.85,0.00022793,2]
[310629820,1704593449577,-544.85,0.00022793,2]
[310629821,1704593449587,-544.85,0.00022793,2]
[310629822,1704593449597,-500.0,0.00022793,2]
[310629823,1704593449606,-500.0,0.00022793,2]
[310629824,1704593449616,-500.0,0.00022793,2]
[310629825,1704593449625,-500.0,0.00022793,2]
[310629826,1704593449634,-500.0,0.00022793,2]
[310629827,1704593449644,-500.0,0.00022793,2]
[310629828,1704593449653,-500.0,0.00022793,2]
[310629829,1704593449663,-500.0,0.00022793,2]
[310629830,1704593449672,-1703.55,0.00022793,2]
[310629831,1704593449682,-480.0,0.00022793,2]
[310629832,1704593449692,-607.09,0.00022793,2]
[310629833,1704593449701,-515.32821385,0.00022793,2]
[310629834,1704593449710,-607.09,0.00022793,2]
[310629835,1704593449720,-607.09,0.00022793,2]
[310629836,1704593449729,-607.09,0.00022793,2]
[310629837,1704593449739,-3453.09,0.00022793,2]
[310629838,1704593449748,-500.0,0.00022793,2]
[310629839,1704593449757,-345.78,0.00022793,2]
[310629840,1704593449766,-967.16,0.00022793,2]
[310629841,1704593449776,-519.09376408,0.00022793,2]
[310629842,1704593449785,-1181.18,0.00022793,2]
[310629843,1704593449795,-500.0,0.00022793,2]
[310629844,1704593449805,-500.0,0.00022793,2]
[310629845,1704593449814,-500.0,0.00022793,2]
[310629846,1704593449824,-500.0,0.00022793,2]
[310629847,1704593449834,-570.24139308,0.00022793,2]
[310629848,1704593449844,-500.0,0.00022793,2]
[310629849,1704593450033,-6385.87,0.00022793,2]
[310629850,1704593450043,-6385.87,0.00022793,2]
[310629851,1704593450052,-6385.87,0.00022793,2]
[310629852,1704593450061,-6385.87,0.00022793,2]
[310629853,1704593450071,-500.0,0.00022793,2]
[310629854,1704593450080,-644.56,0.00022793,2]
[310629855,1704593450090,-593.72,0.00022793,2]
[310629856,1704593450099,-500.0,0.00022793,2]
[310629857,1704593450108,-500.0,0.00022793,2]
[310629858,1704593450118,-500.0,0.00022793,2]
[310629859,1704593450127,-500.0,0.00022793,2]
[310629860,1704593450137,-500.0,0.00022793,2]
[310629861,1704593450146,-500.0,0.00022793,2]
[310629862,1704593450156,-500.0,0.00022793,2]
[310629863,1704593450166,-500.0,0.00022793,2]
[310629864,1704593450176,-500.0,0.00022793,2]
[310629865,1704593450185,-2126.67,0.00022793,2]
[310629866,1704593450195,-500.0,0.00022793,2]
[310629867,1704593450205,-255.44001688,0.00022793,2]
[310629868,1704593450214,-571.77718409,0.00022793,2]
[310629869,1704593450224,-757.71,0.00022793,2]
[310629870,1704593450233,-551.78115057,0.00022793,2]
[310629871,1704593450242,-500.0,0.00022793,2]
[310629872,1704593450251,-500.0,0.00022793,2]
[310629873,1704593450261,-213.89586305,0.00022793,2]
[310629874,1704593450270,-499.81372428,0.00022793,2]
[310629875,1704593450279,-661.99,0.00022793,2]
[310629876,1704593450289,-500.0,0.00022793,2]
[310629877,1704593450299,-500.0,0.00022793,2]
[310629878,1704593450309,-761.98,0.00022793,2]
[310629879,1704593450318,-761.98,0.00022793,2]
[310629880,1704593450327,-761.98,0.00022793,2]
[310629881,1704593450336,-761.98,0.00022793,2]
[310629882,1704593450345,-263.56085423,0.00022793,2]
[310629883,1704593450354,-500.0,0.00022793,2]
[310629884,1704593450363,-500.0,0.00022793,2]
[310629885,1704593450372,-500.0,0.00022793,2]
[310629886,1704593450382,-217.4129481,0.00022793,2]
[310629887,1704593450391,-500.0,0.00022793,2]
[310629888,1704593450401,-500.0,0.00022793,2]
[310629889,1704593450411,-500.0,0.00022793,2]
[310629890,1704593450421,-500.0,0.00022793,2]
[310629891,1704593450430,-500.0,0.00022793,2]
[310629892,1704593450440,-500.0,0.00022793,2]
[310629893,1704593450449,-500.0,0.00022793,2]
[310629894,1704593450459,-500.0,0.00022793,2]
[310629895,1704593450469,-258.68895573,0.00022793,2]
[310629896,1704593450478,-500.0,0.00022793,2]
[310629897,1704593450488,-500.0,0.00022793,2]
[310629898,1704593450498,-1169.48,0.00022793,2]
[310629899,1704593450508,-500.0,0.00022793,2]
[310629900,1704593450517,-500.0,0.00022793,2]
[310629901,1704593450527,-500.0,0.00022793,2]
[310629902,1704593450537,-500.0,0.00022793,2]
[310629903,1704593450547,-500.0,0.00022793,2]
[310629904,1704593450556,-500.0,0.00022793,2]
[310629905,1704593450566,-500.0,0.00022793,2]
[310629906,1704593450576,-500.0,0.00022793,2]
[310629907,1704593450586,-394.89648157,0.00022793,2]
[310629908,1704593450595,-500.0,0.00022793,2]
[310629909,1704593450605,-500.0,0.00022793,2]
[310629910,1704593450614,-500.0,0.00022793,2]
[310629911,1704593450624,-500.0,0.00022793,2]
[310629912,1704593450634,-413.25958874,0.00022793,2]
[310629913,1704593450644,-500.0,0.00022793,2]
[310629914,1704593450653,-500.0,0.00022793,2]
[310629915,1704593450663,-946.82,0.00022793,2]
[310629916,1704593450673,-500.0,0.00022793,2]
[310629917,1704593450683,-500.0,0.00022793,2]
[310629918,1704593450693,-211.64065576,0.00022793,2]
[310629919,1704593450702,-831.13,0.00022793,2]
[310629920,1704593450711,-500.0,0.00022793,2]
[310629921,1704593450721,-500.0,0.00022793,2]
[310629922,1704593450730,-618.74,0.00022793,2]
[310629923,1704593450739,-500.0,0.00022793,2]
[310629924,1704593450748,-500.0,0.00022793,2]
[310629925,1704593450758,-500.0,0.00022793,2]
[310629926,1704593450767,-500.0,0.00022793,2]
[310629927,1704593450776,-500.0,0.00022793,2]
[310629928,1704593450786,-500.0,0.00022793,2]
[310629929,1704593450795,-500.0,0.00022793,2]
[310629930,1704593450805,-500.0,0.00022793,2]
[310629931,1704593450814,-500.0,0.00022793,2]
[310629932,1704593450824,-4008.9,0.00022793,2]
[310629933,1704593450832,-20615.8,0.00022793,2]
[310629934,1704593450842,-500.0,0.00022793,2]
[310629935,1704593450851,-532.6625359,0.00022793,2]
[310629936,1704593450860,-500.0,0.00022793,2]
[310629937,1704593450870,-500.0,0.00022793,2]
[310629938,1704593450879,-500.0,0.00022793,2]
[310629939,1704593450888,-500.0,0.00022793,2]
[310629940,1704593450898,-500.0,0.00022793,2]
[310629941,1704593450907,-500.0,0.00022793,2]
[310629942,1704593450916,-30213.83,0.00022793,2]
[310629943,1704593450925,-500.0,0.00022793,2]
[310629944,1704593450934,-500.0,0.00022793,2]
[310629945,1704593450944,-1224.89,0.00022793,2]
[310629946,1704593450954,-920.27,0.00022793,2]
[310629947,1704593450963,-500.0,0.00022793,2]
[310629948,1704593450973,-500.0,0.00022793,2]
[310629949,1704593450982,-520.18780453,0.00022793,2]
[310629950,1704593450995,-500.0,0.00022793,2]
[310629951,1704593451006,-500.0,0.00022793,2]
[310629952,1704593451017,-509.18,0.00022793,2]
[310629953,1704593451028,-500.0,0.00022793,2]
[310629954,1704593451038,-500.0,0.00022793,2]
[310629955,1704593451047,-500.0,0.00022793,2]
[310629956,1704593451057,-500.0,0.00022793,2]
[310629957,1704593451067,-500.0,0.00022793,2]
[310629958,1704593451077,-500.0,0.00022793,2]
[310629959,1704593451086,-500.0,0.00022793,2]
[310629960,1704593451096,-500.0,0.00022793,2]
[310629961,1704593451105,-500.0,0.00022793,2]
[310629962,1704593451115,-500.0,0.00022793,2]
[310629963,1704593451124,-720.41,0.00022794,2]
[310629964,1704593451134,-513.34554328,0.00022794,2]
[310629965,1704593451143,-500.0,0.00022794,2]
[310629966,1704593451152,-292.47051405,0.00022794,2]
[310629967,1704593451161,-500.0,0.00022794,2]
[310629968,1704593451170,-360.36916605,0.00022794,2]
[310629969,1704593451179,-517.05541797,0.00022794,2]
[310629970,1704593451189,-500.0,0.00022794,2]
[310629971,1704593451198,-500.0,0.00022794,2]
[310629972,1704593451207,-548.84915426,0.00022794,2]
[310629973,1704593451216,-500.0,0.00022794,2]
[310629974,1704593451226,-527.17382684,0.00022794,2]
[310629975,1704593451235,-500.0,0.00022794,2]
[310629976,1704593451244,-500.0,0.00022794,2]
[310629977,1704593451254,-506.75126972,0.00022794,2]
[310629978,1704593451263,-520.15718109,0.00022794,2]
[310629979,1704593451272,-545.56549809,0.00022794,2]
[310629980,1704593451282,-500.0,0.00022794,2]
[310629981,1704593451291,-500.0,0.00022794,2]
[310629982,1704593451300,-500.0,0.00022794,2]
[310629983,1704593451309,-500.0,0.00022794,2]
[310629984,1704593451319,-507.92385801,0.00022794,2]
[310629985,1704593451328,-504.28117238,0.00022794,2]
[310629986,1704593451338,-500.0,0.00022794,2]
[310629987,1704593451347,-505.87769804,0.00022794,2]
[310629988,1704593451356,-500.0,0.00022794,2]
[310629989,1704593451365,-500.0,0.00022794,2]
[310629990,1704593451374,-500.0,0.00022794,2]
[310629991,1704593451383,-500.0,0.00022794,2]
[310629992,1704593451393,-500.0,0.00022794,2]
[310629993,1704593451402,-354.31697812,0.00022794,2]
[310629994,1704593451412,-500.0,0.00022794,2]
[310629995,1704593451421,-515.95483043,0.00022794,2]
[310629996,1704593451431,-512.69384653,0.00022794,2]
[310629997,1704593451440,-500.0,0.00022794,2]
[310629998,1704593451449,-500.0,0.00022794,2]
[310629999,1704593451458,-500.0,0.00022794,2]
[310630000,1704593451468,-520.36783882,0.00022794,2]
[310630001,1704593451477,-505.78725193,0.00022794,2]
[310630002,1704593451487,-509.3635717,0.00022794,2]
[310630003,1704593451496,-500.0,0.00022794,2]
[310630004,1704593451505,-500.0,0.00022794,2]
[310630005,1704593451515,-500.0,0.00022794,2]
[310630006,1704593451524,-512.43875309,0.00022794,2]
[310630007,1704593451534,-207.14244955,0.00022794,2]
[310630008,1704593451543,-511.72733805,0.00022794,2]
[310630009,1704593451553,-509.48775086,0.00022794,2]
[310630010,1704593451562,-273.17117445,0.00022794,2]
[310630011,1704593451571,-500.0,0.00022794,2]
[310630012,1704593451581,-529.49497759,0.00022794,2]
[310630013,1704593451590,-506.59459519,0.00022794,2]
[310630014,1704593451600,-500.0,0.00022794,2]
[310630015,1704593451609,-500.0,0.00022794,2]
[310630016,1704593451618,-518.60404477,0.00022794,2]
[310630017,1704593451627,-504.2794902,0.00022794,2]
[310630018,1704593451636,-522.15394966,0.00022794,2]
[310630019,1704593451646,-515.00926212,0.00022794,2]
[310630020,1704593451655,-500.0,0.00022794,2]
[310630021,1704593451665,-531.10093651,0.00022794,2]
[310630022,1704593451674,-506.81495003,0.00022794,2]
[310630023,1704593451684,-500.0,0.00022794,2]
[310630024,1704593451693,-507.32728248,0.00022794,2]
[310630025,1704593451702,-415.83532975,0.00022794,2]
[310630026,1704593451712,-500.0,0.00022794,2]
[310630027,1704593451721,-500.0,0.00022794,2]
[310630028,1704593451730,-500.0,0.00022794,2]
[310630029,1704593451740,-240.36321344,0.00022794,2]
[310630030,1704593451750,-508.8903292,0.00022794,2]
[310630031,1704593451759,-511.48183305,0.00022794,2]
[310630032,1704593451768,-500.0,0.00022794,2]
[310630033,1704593451777,-500.0,0.00022794,2]
[310630034,1704593451787,-514.17718279,0.00022794,2]
[310630035,1704593451797,-500.0,0.00022794,2]
[310630036,1704593451806,-500.0,0.00022794,2]
[310630037,1704593451816,-500.0,0.00022794,2]
[310630038,1704593451825,-511.14474627,0.00022794,2]
[310630039,1704593451834,-500.0,0.00022794,2]
[310630040,1704593451844,-500.0,0.00022794,2]
[310630041,1704593451854,-500.0,0.00022794,2]
[310630042,1704593451864,-500.0,0.00022794,2]
[310630043,1704593451873,-500.0,0.00022794,2]
[310630044,1704593451883,-500.0,0.00022794,2]
[310630045,1704593451892,-506.6068334,0.00022794,2]
[310630046,1704593451903,-500.0,0.00022794,2]
[310630047,1704593451914,-500.0,0.00022794,2]
[310630048,1704593451923,-509.9850412,0.00022794,2]
[310630049,1704593451933,-554.91172954,0.00022794,2]
[310630050,1704593451942,-500.0,0.00022794,2]
[310630051,1704593451951,-500.0,0.00022794,2]
[310630052,1704593451961,-500.0,0.00022794,2]
[310630053,1704593451971,-500.0,0.00022794,2]
[310630054,1704593451980,-500.0,0.00022794,2]
[310630055,1704593451990,-500.0,0.00022794,2]
[310630056,1704593451999,-522.1645442,0.00022794,2]
[310630057,1704593452009,-500.0,0.00022794,2]
[310630058,1704593452022,-500.0,0.00022794,2]
[310630059,1704593452032,-500.0,0.00022794,2]
[310630060,1704593452043,-500.0,0.00022794,2]
[310630061,1704593452054,-500.0,0.00022794,2]
[310630062,1704593452063,-500.0,0.00022794,2]
[310630063,1704593452072,-500.0,0.00022794,2]
[310630064,1704593452081,-500.0,0.00022794,2]
[310630065,1704593452090,-231.62534687,0.00022794,2]
[310630066,1704593452099,-530.26898219,0.00022794,2]
[310630067,1704593452108,-500.0,0.00022794,2]
[310630068,1704593452117,-500.0,0.00022794,2]
[310630069,1704593452126,-500.0,0.00022794,2]
[310630070,1704593452136,-500.0,0.00022794,2]
[310630071,1704593452146,-515.26006466,0.00022794,2]
[310630072,1704593452155,-500.0,0.00022794,2]
[310630073,1704593452166,-500.0,0.00022794,2]
[310630074,1704593452176,-500.0,0.00022794,2]
[310630075,1704593452187,-500.0,0.00022794,2]
[310630076,1704593452197,-500.0,0.00022794,2]
[310630077,1704593452207,-286.99460595,0.00022794,2]
[310630078,1704593452218,-308.44577055,0.00022794,2]
[310630079,1704593452229,-500.0,0.00022794,2]
[310630080,1704593452238,-500.0,0.00022794,2]
[310630081,1704593452248,-500.0,0.00022794,2]
[310630082,1704593452257,-500.0,0.00022794,2]
[310630083,1704593452266,-500.0,0.00022794,2]
[310630084,1704593452275,-500.0,0.00022794,2]
[310630085,1704593452286,-500.0,0.00022794,2]
[310630086,1704593452343,-500.0,0.00022794,2]
[310630087,1704593452352,-194.47605102,0.00022794,2]
[310630088,1704593452364,-500.0,0.00022794,2]
[310630089,1704593452373,-500.0,0.00022794,2]
[310630090,1704593452383,-447.62891178,0.00022794,2]
[310630091,1704593452393,-500.0,0.00022794,2]
[310630092,1704593452402,-500.0,0.00022794,2]
[310630093,1704593452411,-500.0,0.00022794,2]
[310630094,1704593452423,-500.0,0.00022794,2]
[310630095,1704593452433,-500.0,0.00022794,2]
[310630096,1704593452443,-500.0,0.00022794,2]
[310630097,1704593452452,-500.0,0.00022794,2]
[310630098,1704593452461,-532.25316975,0.00022794,2]
[310630099,1704593452470,-500.0,0.00022794,2]
[310630100,1704593452480,-500.0,0.00022794,2]
[310630101,1704593452490,-500.0,0.00022794,2]
[310630102,1704593452502,-508.4992472,0.00022794,2]
[310630103,1704593452513,-562.68,0.00022794,2]
[310630104,1704593452522,-562.68,0.00022794,2]
[310630105,1704593452531,-500.0,0.00022794,2]
[310630106,1704593452541,-500.0,0.00022794,2]
[310630107,1704593452550,-500.0,0.00022794,2]
[310630108,1704593452559,-500.0,0.00022794,2]
[310630109,1704593452568,-522.51158249,0.00022794,2]
[310630110,1704593452578,-500.0,0.00022794,2]
[310630111,1704593452588,-562.24132657,0.00022794,2]
[310630112,1704593452598,-500.0,0.00022794,2]
[310630113,1704593452607,-500.0,0.00022794,2]
[310630114,1704593452616,-500.0,0.00022794,2]
[310630115,1704593452625,-503.44163101,0.00022794,2]
[310630116,1704593452636,-505.47519849,0.00022794,2]
[310630117,1704593452646,-500.0,0.00022794,2]
[310630118,1704593452657,-249.02289499,0.00022794,2]
[310630119,1704593452668,-500.0,0.00022794,2]
[310630120,1704593452678,-500.0,0.00022794,2]
[310630121,1704593452689,-500.0,0.00022794,2]
[310630122,1704593452699,-513.21792572,0.00022794,2]
[310630123,1704593452711,-500.0,0.00022794,2]
[310630124,1704593452722,-500.0,0.00022794,2]
[310630125,1704593452733,-500.0,0.00022794,2]
[310630126,1704593452744,-530.12357733,0.00022794,2]
[310630127,1704593452755,-151.84,0.00022794,2]
[310630128,1704593452765,-500.0,0.00022794,2]
[310630129,1704593452776,-500.0,0.00022794,2]
[310630130,1704593452787,-500.0,0.00022794,2]
[310630131,1704593452798,-500.0,0.00022794,2]
[310630132,1704593452809,-512.08894186,0.00022794,2]
[310630133,1704593452819,-500.0,0.00022794,2]
[310630134,1704593452829,-219.4438304,0.00022794,2]
[310630135,1704593452839,-500.0,0.00022794,2]
[310630136,1704593452849,-500.0,0.00022794,2]
[310630137,1704593452860,-500.0,0.00022794,2]
[310630138,1704593452871,-500.0,0.00022794,2]
[310630139,1704593452882,-506.51781434,0.00022794,2]
[310630140,1704593452893,-500.0,0.00022794,2]
[310630141,1704593452904,-500.0,0.00022794,2]
[310630142,1704593452916,-594.44555354,0.00022794,2]
[310630143,1704593452930,-500.0,0.00022794,2]
[310630144,1704593452939,-519.95343026,0.00022794,2]
[310630145,1704593452948,-500.0,0.00022794,2]
[310630146,1704593452958,-500.0,0.00022794,2]
[310630147,1704593452969,-500.0,0.00022794,2]
[310630148,1704593452979,-500.0,0.00022794,2]
[310630149,1704593452989,-500.0,0.00022794,2]
[310630150,1704593452999,-398.05060756,0.00022794,2]
[310630151,1704593453008,-500.0,0.00022794,2]
[310630152,1704593453022,-500.0,0.00022794,2]
[310630153,1704593453032,-640.13,0.00022794,2]
[310630154,1704593453043,-640.13,0.00022794,2]
[310630155,1704593453054,-553.55731718,0.00022794,2]
[310630156,1704593453065,-500.0,0.00022794,2]
[310630157,1704593453075,-537.87375593,0.00022794,2]
[310630158,1704593453086,-500.0,0.00022794,2]
[310630159,1704593453096,-500.0,0.00022794,2]
[310630160,1704593453106,-500.0,0.00022794,2]
[310630161,1704593453114,-500.0,0.00022794,2]
[310630162,1704593453123,-500.0,0.00022794,2]
[310630163,1704593453132,-500.0,0.00022794,2]
[310630164,1704593453142,-500.0,0.00022794,2]
[310630165,1704593453151,-500.0,0.00022794,2]
[310630166,1704593453160,-541.84518881,0.00022794,2]
[310630167,1704593453168,-500.0,0.00022794,2]
[310630168,1704593453177,-500.0,0.00022794,2]
[310630169,1704593453186,-500.0,0.00022794,2]
[310630170,1704593453195,-500.0,0.00022794,2]
[310630171,1704593453204,-500.0,0.00022794,2]
[310630172,1704593453212,-500.0,0.00022794,2]
[310630173,1704593453221,-500.0,0.00022794,2]
[310630174,1704593453230,-500.0,0.00022794,2]
[310630175,1704593453239,-500.0,0.00022794,2]
[310630176,1704593453249,-500.0,0.00022794,2]
[310630177,1704593453258,-500.0,0.00022794,2]
[310630178,1704593453267,-500.0,0.00022794,2]
[310630179,1704593453276,-500.0,0.00022794,2]
[310630180,1704593453285,-500.0,0.00022794,2]
[310630181,1704593453293,-500.0,0.00022794,2]
[310630182,1704593453302,-500.0,0.00022794,2]
[310630183,1704593453312,-623.71,0.00022794,2]
[310630184,1704593453321,-500.0,0.00022794,2]
[310630185,1704593453330,-623.71,0.00022794,2]
[310630186,1704593453339,-500.0,0.00022794,2]
[310630187,1704593453348,-500.0,0.00022794,2]
[310630188,1704593453357,-500.0,0.00022794,2]
[310630189,1704593453366,-500.0,0.00022794,2]
[310630190,1704593453375,-519.84,0.00022799,2]
[310630191,1704593453383,-519.84,0.00022799,2]
[310630192,1704593453393,-500.0,0.00022799,2]
[310630193,1704593453402,-500.0,0.00022799,2]
[310630194,1704593453411,-500.0,0.00022799,2]
[310630195,1704593453420,-500.0,0.00022799,2]
[310630196,1704593453429,-500.0,0.00022799,2]
[310630197,1704593453438,-500.0,0.00022799,2]
[310630198,1704593453448,-544.85,0.00022799,2]
[310630199,1704593453457,-544.85,0.00022799,2]
[310630200,1704593453466,-500.0,0.00022799,2]
[310630201,1704593453475,-500.0,0.00022799,2]
[310630202,1704593453485,-607.09,0.00022799,2]
[310630203,1704593453494,-607.09,0.00022799,2]
[310630204,1704593453503,-967.16,0.00022799,2]
[310630205,1704593453512,-967.16,0.00022799,2]
[310630206,1704593453522,-6385.87,0.00022799,2]
[310630207,1704593453531,-6385.87,0.00022799,2]
[310630208,1704593453541,-494.7014337,0.00022799,2]
[310630209,1704593453550,-500.0,0.00022799,2]
[310630210,1704593453559,-632.38,0.00022799,2]
[310630211,1704593453569,-500.0,0.00022799,2]
[310630212,1704593453578,-500.0,0.00022799,2]
[310630213,1704593453588,-500.0,0.00022799,2]
[310630214,1704593453598,-325.5,0.00022799,2]
[310630215,1704593453607,-500.0,0.00022799,2]
[310630216,1704593453616,-500.0,0.00022799,2]
[310630217,1704593453626,-761.98,0.00022799,2]
[310630218,1704593453635,-761.98,0.00022799,2]
[310630219,1704593453644,-500.0,0.00022799,2]
[310630220,1704593453654,-500.0,0.00022799,2]
[310630221,1704593453663,-1169.48,0.00022799,2]
[310630222,1704593453673,-1169.48,0.00022799,2]
[310630223,1704593453682,-500.0,0.00022799,2]
[310630224,1704593453691,-500.0,0.00022799,2]
[310630225,1704593453701,-500.0,0.00022799,2]
[310630226,1704593453710,-500.0,0.00022799,2]
[310630227,1704593453721,-500.0,0.00022799,2]
[310630228,1704593453731,-500.0,0.00022799,2]
[310630229,1704593453741,-946.82,0.00022799,2]
[310630230,1704593453753,-946.82,0.00022799,2]
[310630231,1704593453764,-500.0,0.00022799,2]
[310630232,1704593453774,-500.0,0.00022799,2]
[310630233,1704593453782,-618.74,0.00022799,2]
[310630234,1704593453793,-618.74,0.00022799,2]
[310630235,1704593453804,-500.0,0.00022799,2]
[310630236,1704593453813,-500.0,0.00022799,2]
[310630237,1704593453822,-4008.9,0.00022799,2]
[310630238,1704593453831,-20615.8,0.00022799,2]
[310630239,1704593453840,-4008.9,0.00022799,2]
[310630240,1704593453848,-20615.8,0.00022799,2]
[310630241,1704593453857,-30213.83,0.00022799,2]
[310630242,1704593453866,-30213.83,0.00022799,2]
[310630243,1704593453875,-500.0,0.00022799,2]
[310630244,1704593453883,-500.0,0.00022799,2]
[310630245,1704593453893,-920.27,0.00022799,2]
[310630246,1704593453902,-920.27,0.00022799,2]
[310630247,1704593453911,-509.18,0.00022799,2]
[310630248,1704593453920,-500.0,0.00022799,2]
[310630249,1704593453929,-509.18,0.00022799,2]
[310630250,1704593453938,-500.0,0.00022799,2]
[310630251,1704593453948,-500.0,0.00022799,2]
[310630252,1704593453956,-500.0,0.00022799,2]
[310630253,1704593453965,-512248.58147724,0.000228,2]
[310630254,1704593453974,-500.0,0.00022813,2]
[310630255,1704593453983,-159.34,0.00022858,2]
[310630256,1704593453992,-1000.0,0.00022884,2]
[310630257,1704593454002,-1000.0,0.00022884,2]
[310630258,1704593454011,-1000.0,0.00022884,2]
[310630259,1704593454023,-1000.0,0.00022884,2]
[310630260,1704593454035,-1000.0,0.00022884,2]
[310630261,1704593454044,-1000.0,0.00022884,2]
[310630262,1704593454053,-1000.0,0.00022884,2]
[310630263,1704593454062,-1000.0,0.00022884,2]
[310630264,1704593454073,-1000.0,0.00022884,2]
[310630265,1704593454082,-957.0369,0.00022884,2]
[310630266,1704593454092,-372.77562211,0.0002289,2]
[310630267,1704593454101,-1169.48,0.0002289,2]
[310630268,1704593454111,-946.82,0.0002289,2]
[310630269,1704593454119,-618.74,0.0002289,2]
[310630270,1704593454128,-4008.9,0.0002289,2]
[310630271,1704593454137,-30213.83,0.0002289,2]
[310630272,1704593454146,-509.18,0.0002289,2]
[310630273,1704593454155,-500.0,0.0002289,2]
[310630274,1704593454164,-500.0,0.00022891,2]
[310630275,1704593454173,-500.0,0.00022891,2]
[310630276,1704593454182,-500.0,0.00022891,2]
[310630277,1704593454191,-500.0,0.00022891,2]
[310630278,1704593454200,-2208.02,0.00022891,2]
[310630279,1704593454209,-2208.02,0.00022891,2]